lending/lending_fUSD_20260317
["ID","MTS","AMOUNT","RATE_DAILY","PERIOD"]
[408498874,1773762645553,-5800.0,0.000199,2]
[408498875,1773762645564,-151.0,0.000199,2]
[408498876,1773762645573,-151.0,0.000199,2]
[408498877,1773762645583,-151.0,0.000199,2]
[408498878,1773762645592,-183.363805,0.000199,2]
[408498879,1773762645603,-183.363805,0.000199,2]
[408498880,1773762645613,-183.363805,0.000199,2]
[408498881,1773762645622,-183.363809,0.000199,2]
[408498882,1773762645631,-736.72077786,0.000199,2]
[408498883,1773762645640,-210.69184189,0.000199,3]
[408498884,1773762645650,-4765.3743074,0.000199,2]
[408498885,1773762645659,-1578.73589156,0.000199,2]
[408498886,1773762645668,-285.70385452,0.000199,2]
[408498887,1773762645678,-320.96072027,0.000199,2]
[408498888,1773762645687,-27477.52440994,0.000199,2]
[408498889,1773762645696,-500.0,0.00019926,2]
[408498890,1773762645705,-39448.85077738,0.00019931,2]
[408498891,1773762645720,-7388.5,0.00019931,2]
[408498892,1773762646037,-500.0,0.00014409,2]
[408498893,1773762646046,-484.49388968,0.00014409,2]
[408498894,1773762646159,-15.50611032,0.00014409,2]
[408498895,1773762646168,-500.0,0.00014409,2]
[408498896,1773762646177,-284.62888968,0.00014409,2]
[408498897,1773762646203,-215.37111032,0.00014409,2]
[408498899,1773762646212,-500.0,0.00014409,2]
[408498901,1773762646221,-563.69099058,0.00014409,2]
[408498902,1773762646230,-500.0,0.00014409,2]
[408498903,1773762646240,-500.0,0.00014409,2]
[408498904,1773762646249,-181.96,0.00017982,2]
[408498905,1773762646259,-6004.0,0.00018167,2]
[408498906,1773762646268,-240.9313471,0.00018214,2]
[408498907,1773762646277,-119294.44677012,0.00019931,2]
[408498908,1773762646289,-2901.14546231,0.00019931,2]
[408498909,1773762646300,-2738.8482537,0.00019931,2]
[408498910,1773762666780,1600.0,0.00032877,120]
[408498911,1773762667083,1600.0,0.00032877,120]
[408498912,1773762667360,1600.0,0.00032877,120]
[408498913,1773762667929,1600.0,0.00032877,120]
[408498914,1773762667977,981.0,0.00032877,120]
[408498925,1773763319793,-233.0,0.00011294,2]
[408498926,1773763319815,-242.0,0.00011294,2]
[408498927,1773763488743,2000.096081,0.00031,120]
[408498928,1773763553143,10007.46723993,0.00032877,120]
[408498934,1773763660877,221.0,0.00010729,2]
[408498935,1773763662186,221.0,0.00011729,2]
[408498951,1773763832041,-221.0,0.00012729,2]
[408498952,1773763832051,-500.0,0.00013698,2]
[408498953,1773763832060,-500.0,0.00013698,2]
[408498954,1773763832070,-500.0,0.00013698,2]
[408498955,1773763832079,-221.0,0.00013729,2]
[408498956,1773763832089,-150.0,0.00013845,2]
[408498957,1773763832099,-150.0,0.00014001,2]
[408498958,1773763832110,-1200.0,0.00014001,2]
[408498959,1773763832119,-300.0,0.00014002,2]
[408498960,1773763832128,-300.0,0.00014002,2]
[408498961,1773763832138,-300.0,0.00014002,2]
[408498962,1773763832148,-300.0,0.00014002,2]
[408498963,1773763832157,-325.02911691,0.00014002,2]
[408498964,1773763832167,-195.0,0.00014002,2]
[408498965,1773763832176,-195.0,0.00014002,2]
[408498966,1773763832185,-195.0,0.00014002,2]
[408498967,1773763832194,-195.0,0.00014002,2]
[408498968,1773763832203,-195.0,0.00014002,2]
[408498969,1773763832213,-300.1591244,0.00014002,2]
[408498970,1773763832222,-203.89137362,0.00014002,2]
[408498971,1773763832231,-500.0,0.00014002,2]
[408498972,1773763832240,-500.0,0.00014002,2]
[408498973,1773763832249,-500.0,0.00014002,2]
[408498974,1773763832259,-500.0,0.00014002,2]
[408498975,1773763832268,-323.29027876,0.00014002,2]
[408498976,1773763832277,-600.0,0.00014002,2]
[408498977,1773763832287,-600.0,0.00014002,2]
[408498978,1773763832295,-600.0,0.00014002,2]
[408498979,1773763832305,-600.0,0.00014002,2]
[408498980,1773763832314,-600.0,0.00014002,2]
[408498981,1773763832323,-160.0,0.00014005,2]
[408498982,1773763832333,-929.37600956,0.00014005,2]
[408498983,1773763832342,-1336.44122748,0.0001459,2]
[408498984,1773763832354,-3610.25877252,0.0001459,2]
[408498985,1773763832364,-221.0,0.00014729,2]
[408498986,1773763832373,-179.81,0.00014929,2]
[408498987,1773763832382,-250.0,0.00015,2]
[408498988,1773763832391,-173.69343153,0.0001511,2]
[408498989,1773763832403,-749.30656847,0.0001511,2]
[408498990,1773763832412,-1214.0,0.0001511,2]
[408498991,1773763832421,-255.0,0.00015121,2]
[408498992,1773763832430,-101.50865618,0.00015154,2]
[408498993,1773763832446,-2363.49134382,0.00015154,2]
[408498994,1773763832455,-6004.0,0.00015154,2]
[408498995,1773763832464,-200.0,0.00015277,2]
[408498996,1773763832474,-7592.91,0.00015277,2]
[408498997,1773763832483,-150.99,0.00015277,2]
[408498998,1773763832493,-299.99,0.00015277,2]
[408498999,1773763832502,-150.99,0.00015277,2]
[408499000,1773763832516,-1011.34,0.00015277,2]
[408499001,1773763832525,-3460.75,0.00015277,2]
[408499002,1773763832534,-150.0,0.0001536,2]
[408499003,1773763832543,-150.0,0.0001536,2]
[408499004,1773763832552,-1044.0,0.0001536,2]
[408499005,1773763832561,-3511.0,0.0001536,2]
[408499006,1773763832570,-1344.0,0.0001536,2]
[408499007,1773763832579,-620.0,0.0001536,2]
[408499008,1773763832588,-1260.0,0.0001536,2]
[408499009,1773763832598,-1680.0,0.00015401,2]
[408499010,1773763832607,-221.13096434,0.00015517,2]
[408499011,1773763832617,-44354.22740311,0.00015518,2]
[408499012,1773763832626,-230.0,0.00015729,2]
[408499013,1773763832635,-1480.1,0.00015733,2]
[408499014,1773763832644,-2500.0,0.00015733,2]
[408499015,1773763832653,-475.95720727,0.00015757,2]
[408499016,1773763832663,-3689.19608105,0.00015773,2]
[408499017,1773763832672,-179.70126576,0.00015773,2]
[408499018,1773763832681,-707.28110344,0.00015773,2]
[408499019,1773763832690,-4610.0,0.00015808,2]
[408499020,1773763832699,-427.60887693,0.00015823,2]
[408499021,1773763832708,-250.0,0.00015824,2]
[408499022,1773763832718,-250.0,0.00015824,2]
[408499023,1773763832727,-250.0,0.00015824,2]
[408499024,1773763832737,-250.0,0.00015824,2]
[408499025,1773763832747,-250.0,0.00015824,2]
[408499026,1773763832757,-250.0,0.00015824,2]
[408499027,1773763832766,-250.0,0.00015824,2]
[408499028,1773763832774,-250.0,0.00015824,2]
[408499029,1773763832783,-250.0,0.00015824,2]
[408499030,1773763832792,-250.0,0.00015824,2]
[408499031,1773763832946,-250.0,0.00015824,2]
[408499032,1773763832956,-250.0,0.00015824,2]
[408499033,1773763832966,-2251.91,0.0001583,2]
[408499034,1773763832975,-151.0,0.0001583,2]
[408499035,1773763832984,-165.365,0.0001583,2]
[408499036,1773763832994,-987.75961641,0.00015832,5]
[408499037,1773763833003,-495.0,0.00015833,5]
[408499038,1773763833012,-389.0,0.00015833,5]
[408499039,1773763833021,-253361.78255973,0.00015833,2]
[408499040,1773763833033,-624.35787928,0.00015833,2]
[408499041,1773763833044,-396.74448943,0.00015833,2]
[408499042,1773763833055,-10594.85606842,0.00015833,2]
[408499043,1773763833066,-1900.0,0.00015833,2]
[408499044,1773763833091,-1000.0,0.00015833,2]
[408499045,1773763833102,-2701.61761818,0.00015833,2]
[408499046,1773763833113,-72528.32272537,0.00015833,2]
[408499047,1773763833125,-3182.3873477,0.00015833,2]
[408499049,1773763838022,-5861.0,0.00015833,2]
[408499050,1773763838172,-426.61846658,0.00015833,2]
[408499051,1773763838183,-408.54905294,0.00015833,2]
[408499052,1773763838211,-5489.6013806,0.00015833,2]
[408499058,1773763840321,-3756.0,0.00015154,2]
[408499059,1773763840330,-487916.13658125,0.00015833,2]
[408499060,1773763840341,-276.99747719,0.00015833,2]
[408499061,1773763840382,-1653331.02835333,0.00015833,2]
[408499062,1773763840391,-503.39079718,0.00015873,2]
[408499063,1773763840401,-3689.19608101,0.00016009,2]
[408499064,1773763840410,-359.05299067,0.00016037,2]
[408499065,1773763840419,-707.28110341,0.00016198,2]
[408499066,1773763840428,-3689.19608101,0.00016246,2]
[408499067,1773763840439,-288.68534246,0.00016325,2]
[408499068,1773763840458,-500.0,0.00016325,2]
[408499069,1773763840468,-521.59387392,0.00016325,2]
[408499070,1773763840479,-500.0,0.00016325,2]
[408499071,1773763840488,-500.0,0.00016325,2]
[408499072,1773763840497,-511.1229767,0.00016325,2]
[408499073,1773763840506,-500.0,0.00016325,2]
[408499074,1773763840516,-624.90534166,0.00016325,2]
[408499075,1773763840529,-433.0,0.00016325,2]
[408499076,1773763840538,-265.14259558,0.00016368,2]
[408499077,1773763840548,-154.81,0.00016438,2]
[408499078,1773763840557,-3689.19608101,0.00016482,2]
[408499079,1773763840567,-707.28110341,0.00016624,2]
[408499080,1773763840577,-166.66,0.00016712,2]
[408499081,1773763840587,-3689.19608101,0.00016718,2]
[408499082,1773763840596,-186.3830914,0.000169,2]
[408499083,1773763840606,-2351.0,0.00016941,2]
[408499084,1773763840615,-3689.19608101,0.00016955,2]
[408499085,1773763840624,-199730.67923963,0.00017,2]
[408499086,1773763840634,-24039.73603744,0.00017,2]
[408499087,1773763840644,-300.0,0.00017,2]
[408499088,1773763840654,-500.0,0.00017041,2]
[408499089,1773763840663,-707.28110341,0.00017049,2]
[408499090,1773763840673,-455.2593543,0.00017087,2]
[408499092,1773763840682,-77652.04815017,0.000171,2]
[408499093,1773763840691,-500.0,0.00017187,2]
[408499094,1773763840700,-3689.19608101,0.00017191,2]
[408499095,1773763840709,-500.0,0.00017204,2]
[408499096,1773763840719,-166.75988284,0.00017225,2]
[408499097,1773763840728,-10000.0,0.0001726,2]
[408499098,1773763840738,-427.60887693,0.00017316,2]
[408499099,1773763840747,-300.0,0.00017325,2]
[408499100,1773763840756,-666.0,0.00017325,2]
[408499101,1773763840765,-766946.7166,0.00017326,2]
[408499102,1773763840775,-500.0,0.00017373,2]
[408499103,1773763840784,-500.0,0.00017373,2]
[408499104,1773763840793,-160.10164631,0.00017373,2]
[408499105,1773763840803,-500.0,0.00017373,2]
[408499106,1773763840812,-13209.22,0.00017426,2]
[408499107,1773763840822,-3689.19608101,0.00017427,2]
[408499108,1773763840835,-500.0,0.00017448,2]
[408499109,1773763840845,-707.28110341,0.00017475,2]
[408499110,1773763840855,-500.0,0.00017586,2]
[408499111,1773763840865,-736.0,0.00017641,2]
[408499112,1773763840874,-500.0,0.0001766,2]
[408499113,1773763840884,-3689.19608101,0.00017664,2]
[408499114,1773763840894,-301.55419742,0.000178,2]
[408499115,1773763840903,-800.0,0.00017808,2]
[408499116,1773763840913,-168.0,0.00017875,2]
[408499117,1773763840922,-3689.19608101,0.000179,2]
[408499118,1773763840931,-707.28110341,0.000179,2]
[408499119,1773763840940,-1000.0,0.00017921,2]
[408499120,1773763840950,-177.979296,0.00017942,2]
[408499121,1773763840961,-400.0,0.0001797,2]
[408499122,1773763840971,-400.0,0.0001797,2]
[408499123,1773763841162,-400.0,0.0001797,2]
[408499124,1773763841177,-400.0,0.0001797,2]
[408499125,1773763841188,-451.15996436,0.0001797,2]
[408499126,1773763841198,-427.60887693,0.0001799,2]
[408499127,1773763841209,-214.013025,0.00017992,7]
[408499128,1773763841219,-160.0,0.00017992,7]
[408499129,1773763841228,-282.47494,0.00017992,7]
[408499130,1773763841238,-404.94988,0.00017992,7]
[408499131,1773763841247,-160.0,0.00017992,7]
[408499132,1773763841257,-196.768003,0.00017992,7]
[408499133,1773763841266,-233.536006,0.00017992,7]
[408499134,1773763841276,-160.0,0.00017992,7]
[408499135,1773763841287,-171.428533,0.00017992,7]
[408499136,1773763841298,-182.857067,0.00017992,7]
[408499137,1773763841308,-214.013025,0.00017992,7]
[408499138,1773763841321,-300.0,0.00017999,2]
[408499139,1773763841330,-726.4646336,0.00017999,2]
[408499140,1773763841339,-155.0,0.00017999,2]
[408499141,1773763841348,-100000.0,0.00018,2]
[408499142,1773763841357,-1863256.62982565,0.00018,2]
[408499153,1773763845968,-1576.6,0.00015773,2]
[408499154,1773763846208,-6147.11538666,0.00015773,2]
[408499155,1773763846217,-75787.90679636,0.00018,2]
[408499161,1773764024222,1000.0,0.00032877,120]
[408499162,1773764031821,1000.0,0.00032877,120]
[408499164,1773764042686,500.0,0.00032877,120]
[408499165,1773764049788,500.0,0.00032877,120]
[408499166,1773764068713,500.0,0.00032877,120]
[408499167,1773764074681,500.0,0.00032877,120]
[408499168,1773764080599,500.0,0.00032877,120]
[408499169,1773764087771,500.0,0.00032877,120]
[408499170,1773764094152,500.0,0.00032877,120]
[408499171,1773764102152,500.0,0.00032877,120]
[408499172,1773764108596,500.0,0.00032877,120]
[408499173,1773764114778,500.0,0.00032877,120]
[408499174,1773764120719,500.0,0.00032877,120]
[408499175,1773764128069,500.0,0.00032877,120]
[408499176,1773764135384,500.0,0.00032877,120]
[408499177,1773764143085,500.0,0.00032877,120]
[408499178,1773764149466,500.0,0.00032877,120]
[408499179,1773764161178,320.6,0.00032877,120]
[408499180,1773764206653,823.169,0.0003287,120]
[408499181,1773764299017,83.0,0.00010192,2]
[408499182,1773764336159,259.0,0.00032877,120]
[408499183,1773764445506,9699.0,0.00032877,120]
[408499190,1773764600766,2045.0,0.00032877,120]
[408499192,1773764684884,10000.0,0.00032877,120]
[408499196,1773764759905,162.35,0.0001,5]
[408499216,1773764796059,157.3,7.034e-05,2]
[408499217,1773764796316,157.3,8.793e-05,2]
[408499226,1773764808938,756.28998056,0.0003287,120]
[408499234,1773764879647,5098.2159833,0.000274,120]
[408499248,1773764917648,1000.0,0.00032876,120]
[408499249,1773764926183,1000.0,0.00032876,120]
[408499250,1773764932239,1000.0,0.00032876,120]
[408499251,1773764938463,1000.0,0.00032876,120]
[408499256,1773765032139,-150.0,9.683e-05,2]
[408499257,1773765032149,-798.88430779,0.0001025,2]
[408499258,1773765032159,-1497.06657065,0.0001035,2]
[408499259,1773765032276,-493.40272302,0.0001035,2]
[408499260,1773765032286,-2760.85948826,0.0001045,2]
[408499261,1773765032296,-157.3,0.00010551,2]
[408499262,1773765032305,-250.0,0.00010651,2]
[408499263,1773765032315,-150.0,0.00010683,2]
[408499264,1773765032325,-1200.0,0.00011253,2]
[408499265,1773765032334,-300.0,0.00011253,2]
[408499266,1773765032344,-300.0,0.00011253,2]
[408499267,1773765032354,-300.0,0.00011253,2]
[408499268,1773765032363,-5000.0,0.00011254,2]
[408499269,1773765032373,-5000.0,0.00011254,2]
[408499270,1773765032382,-150.0,0.00011683,2]
[408499271,1773765032392,-157.3,0.0001231,2]
[408499272,1773765032401,-420.0,0.00012363,2]
[408499273,1773765032412,-1680.0,0.00012379,2]
[408499274,1773765032423,-150.0,0.00012683,2]
[408499275,1773765032433,-3326.65,0.00013046,2]
[408499276,1773765032443,-587.0,0.00013582,2]
[408499277,1773765032452,-198.5,0.00013601,2]
[408499278,1773765032462,-2351.0,0.00013617,2]
[408499279,1773765032472,-166.66,0.00013677,2]
[408499280,1773765032482,-150.0,0.00013683,2]
[408499281,1773765032492,-166.66,0.00013965,2]
[408499282,1773765032502,-157.3,0.00014068,2]
[408499283,1773765032512,-846.88443958,0.0001413,2]
[408499284,1773765032523,-1005.53556042,0.0001413,2]
[408499286,1773765032533,-180.95,0.00014181,2]
[408499287,1773765032545,-166.66,0.00014253,2]
[408499288,1773765032555,-17356.85,0.00014261,2]
[408499290,1773765032565,-166.66,0.00014541,2]
[408499292,1773765032574,-150.99,0.00014541,2]
[408499293,1773765032583,-161.0,0.00014683,2]
[408499295,1773765032593,-2000.0,0.00014809,2]
[408499297,1773765032602,-150.0,0.0001482,2]
[408499298,1773765032612,-358.18864893,0.00014821,2]
[408499300,1773765032621,-6758.25096331,0.00014821,2]
[408499302,1773765032631,-3022.56159359,0.00014821,2]
[408499304,1773765032640,-166.66,0.00014829,2]
[408499306,1773765032650,-929.37600956,0.0001489,2]
[408499308,1773765032662,-500.0,0.00014919,2]
[408499310,1773765032671,-538.49588401,0.00014919,2]
[408499311,1773765032682,-463.53879271,0.00014919,2]
[408499312,1773765032692,-714.2140239,0.00014919,2]
[408499313,1773765032701,-714.2140239,0.00014919,2]
[408499314,1773765032710,-714.2140239,0.00014919,2]
[408499315,1773765032722,-714.2140239,0.00014919,2]
[408499316,1773765032732,-714.2140239,0.00014919,2]
[408499317,1773765032744,-714.2140239,0.00014919,2]
[408499318,1773765032759,-714.2140239,0.00014919,2]
[408499319,1773765032769,-714.2140239,0.00014919,2]
[408499320,1773765032778,-714.2140239,0.00014919,2]
[408499321,1773765032787,-714.2140239,0.00014919,2]
[408499322,1773765032796,-714.2140239,0.00014919,2]
[408499323,1773765032805,-714.2140239,0.00014919,2]
[408499324,1773765032816,-714.2140239,0.00014919,2]
[408499325,1773765032827,-714.2140239,0.00014919,2]
[408499326,1773765032836,-714.2140239,0.00014919,2]
[408499327,1773765032846,-714.2140239,0.00014919,2]
[408499328,1773765032855,-714.2140239,0.00014919,2]
[408499329,1773765032865,-714.2140239,0.00014919,2]
[408499330,1773765032874,-714.2140239,0.00014919,2]
[408499331,1773765032883,-714.2140239,0.00014919,2]
[408499332,1773765032893,-714.2140239,0.00014919,2]
[408499333,1773765032903,-714.2140239,0.00014919,2]
[408499334,1773765032913,-714.2140239,0.00014919,2]
[408499335,1773765032922,-714.2140239,0.00014919,2]
[408499336,1773765032932,-714.2140239,0.00014919,2]
[408499337,1773765032942,-714.2140239,0.00014919,2]
[408499338,1773765032959,-714.2140239,0.00014919,2]
[408499339,1773765032968,-714.2140239,0.00014919,2]
[408499340,1773765032978,-714.2140239,0.00014919,2]
[408499341,1773765032987,-714.2140239,0.00014919,2]
[408499342,1773765032996,-714.2140239,0.00014919,2]
[408499343,1773765033006,-555.95162536,0.00014919,2]
[408499346,1773765038333,-158.26239854,0.00014919,2]
[408499347,1773765038343,-714.2140239,0.00014919,2]
[408499348,1773765038353,-714.2140239,0.00014919,2]
[408499349,1773765038362,-714.2140239,0.00014919,2]
[408499350,1773765038372,-714.2140239,0.00014919,2]
[408499351,1773765038382,-714.2140239,0.00014919,2]
[408499352,1773765038391,-714.2140239,0.00014919,2]
[408499353,1773765038400,-714.2140239,0.00014919,2]
[408499354,1773765038410,-714.2140239,0.00014919,2]
[408499355,1773765038420,-712.66138472,0.00014919,2]
[408499356,1773765038429,-712.66138472,0.00014919,2]
[408499357,1773765038438,-712.66138472,0.00014919,2]
[408499358,1773765038449,-712.66138472,0.00014919,2]
[408499359,1773765038458,-712.66138472,0.00014919,2]
[408499360,1773765038467,-712.66138472,0.00014919,2]
[408499361,1773765038476,-712.66138472,0.00014919,2]
[408499362,1773765038485,-712.66138472,0.00014919,2]
[408499363,1773765038495,-712.66138472,0.00014919,2]
[408499364,1773765038504,-712.66138472,0.00014919,2]
[408499365,1773765038513,-712.66138472,0.00014919,2]
[408499366,1773765038523,-712.66138472,0.00014919,2]
[408499367,1773765038532,-712.66138472,0.00014919,2]
[408499368,1773765038541,-712.66138472,0.00014919,2]
[408499369,1773765038551,-712.66138472,0.00014919,2]
[408499370,1773765038560,-112.26227476,0.00014919,2]
[408499371,1773765038572,-470.38532508,0.00014919,2]
[408499372,1773765038583,-130.01378488,0.00014919,2]
[408499373,1773765038593,-712.66138472,0.00014919,2]
[408499374,1773765038602,-712.66138472,0.00014919,2]
[408499375,1773765038611,-712.66138472,0.00014919,2]
[408499376,1773765038621,-712.66138472,0.00014919,2]
[408499377,1773765038630,-712.66138472,0.00014919,2]
[408499378,1773765038639,-712.66138472,0.00014919,2]
[408499379,1773765038649,-712.66138472,0.00014919,2]
[408499380,1773765038658,-712.66138472,0.00014919,2]
[408499381,1773765038667,-712.66138472,0.00014919,2]
[408499382,1773765038676,-61456.03375264,0.0001492,2]
[408499383,1773765038691,-109590.10006783,0.0001492,2]
[408499384,1773765038851,-9685.99854162,0.0001492,2]
[408499431,1773765040828,-338.004,0.0001492,2]
[408499432,1773765040840,-585876.58023791,0.0001492,2]
[408499433,1773765040849,-1994.3687,0.00014921,2]
[408499434,1773765040859,-823.0,0.00014922,2]
[408499435,1773765040868,-3292.0,0.00014978,2]
[408499436,1773765040877,-4373.63926543,0.00014989,2]
[408499437,1773765040886,-358.87803777,0.00015011,2]
[408499438,1773765040896,-151.0,0.00015012,2]
[408499439,1773765040904,-151.0,0.00015012,2]
[408499440,1773765040913,-151.0,0.00015012,2]
[408499441,1773765040923,-151.0,0.00015012,2]
[408499442,1773765040931,-204.0271073,0.00015012,2]
[408499443,1773765040940,-1801.528,0.00015019,2]
[408499444,1773765040950,-288.68534246,0.0001502,2]
[408499445,1773765040958,-500.0,0.0001502,2]
[408499446,1773765040967,-521.59387392,0.0001502,2]
[408499447,1773765040977,-500.0,0.0001502,2]
[408499448,1773765040986,-500.0,0.0001502,2]
[408499449,1773765040996,-511.1229767,0.0001502,2]
[408499450,1773765041006,-383839.6691,0.00015021,2]
[408499451,1773765041015,-503.39079718,0.00015073,2]
[408499452,1773765041024,-500.0,0.00015073,2]
[408499453,1773765041034,-500.0,0.00015073,2]
[408499454,1773765041043,-166.66,0.00015117,2]
[408499455,1773765041053,-3022.56159353,0.00015163,2]
[408499456,1773765041063,-198.5,0.00015301,2]
[408499457,1773765041072,-733.77780576,0.0001532,2]
[408499458,1773765041081,-500.0,0.00015418,2]
[408499459,1773765041091,-500.0,0.00015473,2]
[408499460,1773765041100,-500.0,0.00015473,2]
[408499461,1773765041110,-160.10164631,0.00015473,2]
[408499462,1773765041119,-3022.56159353,0.00015505,2]
[408499463,1773765041128,-4000.0,0.00015507,2]
[408499464,1773765041137,-6758.25096326,0.00015547,2]
[408499465,1773765041147,-500.0,0.00015621,2]
[408499466,1773765041156,-1260.0,0.00015781,2]
[408499467,1773765041165,-1214.0,0.00015781,2]
[408499468,1773765041174,-923.0,0.00015781,2]
[408499469,1773765041184,-1044.0,0.00015781,2]
[408499470,1773765041194,-3511.0,0.00015781,2]
[408499471,1773765041203,-620.0,0.00015781,2]
[408499472,1773765041212,-774.56,0.00015786,2]
[408499473,1773765041222,-1500.0,0.00015786,2]
[408499474,1773765041231,-500.0,0.00015833,2]
[408499475,1773765041240,-500.0,0.00015833,2]
[408499476,1773765041250,-500.0,0.00015833,2]
[408499477,1773765041259,-2000.0,0.0001589,2]
[408499478,1773765041269,-4000.0,0.00015895,2]
[408499479,1773765041279,-255.0,0.00015946,2]
[408499480,1773765041289,-289.64487035,0.00016,2]
[408499481,1773765041298,-500.0,0.0001602,2]
[408499482,1773765041308,-289.64487035,0.000161,2]
[408499483,1773765041318,-6758.25096326,0.00016272,2]
[408499484,1773765041327,-4000.0,0.00016282,2]
[408499485,1773765041337,-250.0,0.00016356,2]
[408499486,1773765041347,-250.0,0.00016356,2]
[408499487,1773765041356,-250.0,0.00016356,2]
[408499488,1773765041366,-250.0,0.00016356,2]
[408499489,1773765041378,-250.0,0.00016356,2]
[408499490,1773765041387,-250.0,0.00016356,2]
[408499491,1773765041397,-250.0,0.00016356,2]
[408499492,1773765041406,-250.0,0.00016356,2]
[408499493,1773765041415,-250.0,0.00016356,2]
[408499494,1773765041425,-250.0,0.00016356,2]
[408499495,1773765041434,-250.0,0.00016356,2]
[408499496,1773765041443,-250.0,0.00016356,2]
[408499497,1773765041452,-1152.0,0.00016393,2]
[408499498,1773765041461,-157.89303656,0.00016438,2]
[408499499,1773765041470,-500.0,0.00016438,2]
[408499500,1773765041589,-500.0,0.00016438,2]
[408499501,1773765041599,-500.0,0.00016438,2]
[408499502,1773765041608,-500.0,0.00016438,2]
[408499503,1773765041619,-500.0,0.00016438,2]
[408499504,1773765041629,-500.0,0.00016438,2]
[408499505,1773765041638,-4609.0,0.00016476,2]
[408499506,1773765041648,-1000.0,0.00016568,2]
[408499507,1773765041657,-2000.0,0.0001666,2]
[408499508,1773765041666,-4000.0,0.0001667,2]
[408499509,1773765041676,-308.0,0.00016761,5]
[408499510,1773765041685,-156.0,0.00016761,5]
[408499511,1773765041695,-6758.25096326,0.00016998,2]
[408499512,1773765041704,-500.0,0.00016999,2]
[408499513,1773765041713,-24039.73603744,0.00017,2]
[408499514,1773765041722,-265180.9882292,0.00017,4]
[408499515,1773765041732,-198.5,0.00017001,2]
[408499516,1773765041742,-4000.0,0.00017058,2]
[408499517,1773765041756,-1500.0,0.00017116,2]
[408499518,1773765041766,-433.0,0.00017162,2]
[408499519,1773765041775,-184.01178514,0.00017211,5]
[408499520,1773765041784,-10000.0,0.00017226,2]
[408499521,1773765041796,-160.0,0.0001745,7]
[408499522,1773765041806,-182.301025,0.0001745,7]
[408499523,1773765041816,-204.602051,0.0001745,7]
[408499524,1773765041826,-500.0,0.00017452,2]
[408499525,1773765041835,-314.097167,0.0001764,7]
[408499526,1773765041844,-444.022499,0.0001764,7]
[408499527,1773765041854,-160.0,0.0001764,7]
[408499528,1773765041864,-170.670898,0.0001764,7]
[408499529,1773765041875,-181.341797,0.0001764,7]
[408499530,1773765041884,-160.0,0.0001764,7]
[408499531,1773765041894,-167.825851,0.0001764,7]
[408499532,1773765041902,-175.651702,0.0001764,7]
[408499533,1773765041912,-230.856826,0.0001764,7]
[408499534,1773765041921,-500.0,0.00017649,2]
[408499535,1773765041930,-500.0,0.00017657,2]
[408499536,1773765041939,-2000.0,0.00017664,2]
[408499537,1773765041949,-301.55419742,0.000177,2]
[408499538,1773765041958,-589.40091955,0.00017706,2]
[408499539,1773765041968,-6758.25096326,0.00017723,2]
[408499540,1773765041978,-13682.15,0.00017728,2]
[408499541,1773765041988,-1634.43,0.00017728,2]
[408499542,1773765041998,-589.4009195,0.00017745,2]
[408499543,1773765042007,-500.0,0.00017769,2]
[408499544,1773765042017,-589.4009195,0.00017784,2]
[408499545,1773765042026,-4869.9722764,0.00017806,2]
[408499546,1773765042035,-15153.9195623,0.00017806,2]
[408499547,1773765042045,-248285.5889011,0.00017806,2]
[408499548,1773765042054,-164007.0873719,0.00017806,2]